bitfinex-derivatives/quotes_SOLF0:USTF0_20241215
["timestamp","ask_amount","ask_price","bid_price","bid_amount"]
[1734296230703,6.18168477,220.61,220.58,2.2675]
[1734296230897,2.0,220.6,220.57,5.50922459]
[1734296231298,6.18168477,220.59,220.48,2.0]
[1734296231704,6.18168477,220.59,220.51,6.18168477]
[1734296232401,2.0,220.59,220.55,11.74530964]
[1734296233000,2.0,220.59,220.58,2.2675]
[1734296240802,7.59848477,220.65,220.61,2.2671]
[1734296240803,2.04,220.62,220.61,2.2671]
[1734296241006,7.59848477,220.65,220.61,2.2671]
[1734296241205,2.04,220.64,220.57,6.18168477]
[1734296241414,2.04,220.64,220.62,2.2671]
[1734296241909,7.59848477,220.65,220.59,6.18168477]
[1734296242107,2.04,220.64,220.59,6.18168477]
[1734296242408,2.04,220.63,220.59,6.18168477]
[1734296243012,2.04,220.63,220.62,2.2671]
[1734296244714,2.04,220.64,220.63,2.2669]
[1734296261120,6.18168477,220.67,220.62,5.43089971]
[1734296261121,6.18168477,220.67,220.64,2.2669]
[1734296261320,2.04,220.66,220.64,2.2669]
[1734296262622,2.04,220.66,220.65,2.2668]
[1734296263418,6.18168477,220.69,220.66,2.2666]
[1734296263623,2.04,220.68,220.66,2.2666]
[1734296265422,6.18168477,220.67,220.66,2.2666]
[1734296274630,8.18168477,220.67,220.66,2.2666]
[1734296282228,2.0,220.67,220.66,2.2666]
[1734296283630,2.2659,220.74,220.67,2.2665]
[1734296283831,6.18168477,220.72,220.64,6.18168477]
[1734296284233,2.0,220.71,220.64,6.18168477]
[1734296284733,2.0,220.71,220.69,2.2663]
[1734296285326,2.0,220.71,220.7,2.2663]
[1734296299047,2.0,220.71,220.69,2.2664]
[1734296305350,2.0,220.71,220.7,5.41848815]
[1734296307951,2.0,220.71,220.69,2.2664]
[1734296308148,2.0,220.71,220.61,4.4605]
[1734296308346,6.18168477,220.7,220.61,9.14618477]
[1734296308541,2.0,220.71,220.61,9.14618477]
[1734296308542,6.18168477,220.68,220.61,7.68408477]
[1734296308747,1.98,220.67,220.61,7.68408477]
[1734296309852,1.98,220.67,220.64,2.2669]
[1734296310952,1.98,220.67,220.64,7.67167654]
[1734296312156,1.98,220.67,220.64,5.40477654]
[1734296316258,1.98,220.67,220.61,7.68408477]
[1734296316449,1.98,220.67,220.64,2.2669]
[1734296318258,1.98,220.67,220.64,7.68909199]
[1734296320658,1.98,220.67,220.66,2.2667]
[1734296321462,8.44778477,220.72,220.66,2.2667]
[1734296321762,1.98,220.71,220.66,2.2667]
[1734296322260,1.98,220.71,220.67,2.2665]
[1734296326657,6.18168477,220.7,220.67,2.2665]
[1734296330962,6.18168477,220.7,220.64,5.42219199]
[1734296331165,1.98,220.69,220.64,11.60387676]
[1734296331365,1.98,220.68,220.66,6.18168477]
[1734296331567,1.98,220.69,220.68,2.2665]
[1734296331771,1.98,220.69,220.66,6.18168477]
[1734296332667,1.98,220.69,220.67,2.2666]
[1734296342269,1.98,220.69,220.64,11.60387676]
[1734296343473,1.98,220.69,220.67,2.2665]
[1734296346371,1.98,220.69,220.68,2.2665]
[1734296366701,1.98,220.69,220.61,1.5024]
[1734296366904,6.18168477,220.67,220.59,6.18168477]
[1734296367904,6.18168477,220.67,220.62,2.267]
[1734296370104,6.18168477,220.67,220.61,5.44079738]
[1734296370308,8.16168477,220.69,220.61,11.62248215]
[1734296371205,8.16168477,220.69,220.64,2.2668]
[1734296373402,8.16168477,220.69,220.65,2.2668]
[1734296375307,10.42808477,220.69,220.65,2.2668]
[1734296380118,4.2464,220.69,220.65,2.2668]
[1734296380316,10.42808477,220.69,220.65,2.2668]
[1734296383419,6.18168477,220.67,220.61,5.44079738]
[1734296383620,2.2667,220.66,220.62,2.2671]
[1734296383821,1.94,220.65,220.62,2.2671]
[1734296384118,1.94,220.65,220.61,5.44079738]
[1734296384412,1.94,220.65,220.63,2.2669]
[1734296385718,1.94,220.65,220.62,2.2671]
[1734296389918,1.94,220.65,220.61,5.44079738]
[1734296390124,8.12168477,220.65,220.61,7.70799738]
[1734296390627,8.12168477,220.65,220.61,2.2672]
[1734296390817,6.18168477,220.63,220.59,2.2673]
[1734296391016,6.18168477,220.63,220.55,1.4563]
[1734296391219,2.2671,220.62,220.57,2.2676]
[1734296391424,1.94,220.61,220.57,2.2676]
[1734296392326,8.12168477,220.61,220.56,2.2677]
[1734296393725,8.12168477,220.61,220.55,5.57337218]
[1734296393920,8.12168477,220.61,220.57,2.2676]
[1734296395222,8.12168477,220.61,220.55,5.57337218]
[1734296396525,8.12168477,220.61,220.56,2.2676]
[1734296401530,1.94,220.6,220.56,2.2676]
[1734296402029,6.18168477,220.59,220.56,2.2676]
[1734296402731,6.18168477,220.59,220.51,6.18168477]
[1734296404022,6.18168477,220.57,220.51,11.72642457]
[1734296404242,1.94,220.56,220.51,11.72642457]
[1734296404531,1.94,220.56,220.54,2.2679]
[1734296409627,1.94,220.56,220.51,5.38514873]
[1734296409828,4.2077,220.56,220.51,7.65334873]
[1734296410024,4.2077,220.56,220.51,2.2682]
[1734296410435,2.2678,220.55,220.5,2.2683]
[1734296410630,2.2678,220.55,220.48,6.18168477]
[1734296410631,6.18168477,220.55,220.47,0.23802]
[1734296411326,6.18168477,220.55,220.49,5.43568492]
[1734296411531,2.2679,220.54,220.49,7.70408492]
[1734296412525,8.44948477,220.55,220.5,2.2683]
[1734296414138,2.2678,220.55,220.49,5.43568492]
[1734296414437,2.2678,220.55,220.51,2.2682]
[1734296415241,8.12168477,220.56,220.49,2.2683]
[1734296415242,6.18168477,220.54,220.49,2.2683]
[1734296415444,6.18168477,220.54,220.47,0.23802]
[1734296415852,2.2681,220.52,220.48,2.2685]
[1734296416143,1.94,220.51,220.48,2.2685]
[1734296417146,4.2083,220.51,220.47,0.23802]
[1734296419138,8.44998477,220.5,220.47,0.23802]
[1734296419441,6.18168477,220.48,220.3,25.18860148]
[1734296419744,6.18168477,220.44,220.37,6.18168477]
[1734296419941,1.94,220.43,220.37,6.18168477]
[1734296420344,1.94,220.43,220.39,2.2694]
[1734296421046,1.94,220.43,220.38,2.2695]
[1734296421240,6.18168477,220.42,220.32,1.4987]
[1734296421447,6.18168477,220.42,220.35,6.18168477]
[1734296421640,6.18168477,220.42,220.32,1.4987]
[1734296421840,1.94,220.41,220.36,11.72335857]
[1734296422146,2.2687,220.47,220.38,6.18168477]
[1734296422347,50.53323062,220.5,220.4,6.18168477]
[1734296422545,6.18168477,220.48,220.4,6.18168477]
[1734296422743,6.18168477,220.48,220.42,2.269]
[1734296423639,6.18168477,220.48,220.4,6.18168477]
[1734296423945,6.18168477,220.48,220.44,2.2689]
[1734296424242,2.8828,220.54,220.44,6.18168477]
[1734296424546,6.18168477,220.52,220.47,2.2685]
[1734296425347,1.94,220.51,220.46,6.18168477]
[1734296425544,1.94,220.5,220.46,6.18168477]
[1734296425748,1.94,220.49,220.46,6.18168477]
[1734296425950,1.94,220.48,220.47,2.2686]
[1734296426245,1.94,220.48,220.44,6.18168477]
[1734296426443,1.94,220.48,220.45,2.2688]
[1734296427343,1.94,220.48,220.46,2.2687]
[1734296427746,1.94,220.48,220.44,6.18168477]
[1734296429350,1.94,220.47,220.44,6.18168477]
[1734296429551,6.18168477,220.51,220.47,2.2686]
[1734296429752,1.94,220.5,220.47,2.2686]
[1734296433853,1.94,220.5,220.43,6.18168477]
[1734296434556,6.18168477,220.51,220.43,6.18168477]
[1734296434758,1.94,220.5,220.43,6.18168477]
[1734296435057,1.94,220.49,220.48,2.2684]
[1734296435457,3.7998,220.55,220.43,6.18168477]
[1734296435657,6.18168477,220.52,220.49,2.2684]
[1734296435859,1.94,220.51,220.47,6.18168477]
[1734296436355,2.2673,220.6,220.47,6.18168477]
[1734296436557,6.18168477,220.56,220.49,6.18168477]
[1734296436757,1.94,220.55,220.49,6.18168477]
[1734296436954,6.18168477,220.56,220.49,6.18168477]
[1734296437159,1.94,220.55,220.49,6.18168477]
[1734296438452,1.94,220.55,220.54,2.2679]
[1734296439255,6.18168477,220.56,220.54,2.2679]
[1734296439456,1.94,220.55,220.54,2.2679]
[1734296441455,6.18168477,220.56,220.49,6.18168477]
[1734296441654,6.18168477,220.56,220.55,2.2678]
[1734296441851,8.12168477,220.56,220.55,2.2678]
[1734296442756,1.4431,220.62,220.53,6.18168477]
[1734296442961,1.94,220.61,220.55,6.18168477]
[1734296443158,1.94,220.6,220.55,6.18168477]
[1734296443661,1.94,220.6,220.57,6.18168477]
[1734296444060,1.94,220.6,220.59,2.2674]
[1734296452363,1.94,220.66,220.59,6.18168477]
[1734296453463,1.94,220.66,220.56,1.4867]
[1734296453766,1.94,220.66,220.59,6.18168477]
[1734296454470,1.94,220.66,220.62,2.2671]
[1734296457669,1.94,220.66,220.63,2.267]
[1734296458470,6.18168477,220.67,220.63,2.267]
[1734296458670,1.94,220.66,220.63,2.267]
[1734296459372,6.18168477,220.67,220.59,11.72307344]
[1734296459571,1.94,220.66,220.64,2.2668]
[1734296460078,6.18168477,220.67,220.64,2.2668]
[1734296460301,1.94,220.65,220.64,2.2668]
[1734296460704,1.94,220.65,220.59,5.54138867]
[1734296460705,8.12168477,220.65,220.59,5.54138867]
[1734296461388,8.12168477,220.65,220.61,2.2671]
[1734296461789,8.12168477,220.65,220.59,5.54138867]
[1734296463500,8.12168477,220.65,220.62,2.267]
[1734296464099,8.12168477,220.65,220.59,5.54138867]
[1734296465500,8.12168477,220.65,220.61,2.2672]
[1734296465700,1.94,220.65,220.59,11.72307344]
[1734296468289,1.94,220.65,220.62,2.267]
[1734296468585,1.94,220.65,220.59,5.54138867]
[1734296468586,1.94,220.65,220.6,6.18168477]
[1734296469482,2.2662,220.72,220.65,2.2668]
[1734296469682,6.18168477,220.7,220.65,2.2668]
[1734296469880,1.94,220.69,220.65,2.2668]
[1734296471784,1.94,220.69,220.66,2.2667]
[1734296472087,1.94,220.69,220.62,6.18168477]
[1734296472788,1.94,220.7,220.66,6.18168477]
[1734296472987,1.94,220.7,220.69,2.2664]
[1734296473983,6.18168477,220.73,220.69,2.2664]
[1734296474187,1.94,220.72,220.69,2.2664]
[1734296475790,6.18168477,220.73,220.69,2.2664]
[1734296475989,1.94,220.72,220.69,2.2664]
[1734296478282,6.18168477,220.71,220.67,2.2665]
[1734296480298,1.94,220.72,220.7,2.2663]
[1734296488603,1.94,220.72,220.68,2.2664]
[1734296488604,8.12168477,220.72,220.68,2.2664]
[1734296490112,6.18168477,220.7,220.65,2.2668]
[1734296490411,6.18168477,220.7,220.62,6.18168477]
[1734296491402,8.44798477,220.7,220.64,2.2669]
[1734296491606,8.44798477,220.7,220.62,6.18168477]
[1734296491807,6.18168477,220.7,220.62,6.18168477]
[1734296492706,6.18168477,220.7,220.59,5.54138867]
[1734296492901,6.18168477,220.68,220.59,5.54138867]
[1734296493109,1.94,220.67,220.6,6.18168477]
[1734296493604,1.94,220.67,220.59,5.54138867]
[1734296493605,1.94,220.67,220.62,2.267]
[1734296493802,1.94,220.67,220.59,11.72307344]
[1734296494509,4.2067,220.67,220.61,2.2672]
[1734296495008,6.18168477,220.66,220.61,2.2672]
[1734296495611,6.18168477,220.66,220.59,11.72307344]
[1734296495811,8.44838477,220.66,220.59,13.99037344]
[1734296496906,8.44838477,220.66,220.6,2.2672]
[1734296497111,6.18168477,220.66,220.59,11.72307344]
[1734296498509,6.18168477,220.66,220.61,2.2671]
[1734296498705,5.6372,220.67,220.59,11.72307344]
[1734296498706,3.3706,220.67,220.59,11.72307344]
[1734296500315,3.3706,220.67,220.63,2.267]
[1734296504112,9.55228477,220.67,220.63,2.267]
[1734296504310,9.55228477,220.67,220.64,2.2669]
[1734296507219,5.217,220.74,220.68,2.2664]
[1734296507519,8.12168477,220.73,220.65,6.18168477]
[1734296508019,6.18168477,220.73,220.65,6.18168477]
[1734296508217,1.94,220.72,220.69,2.2664]
[1734296510016,1.94,220.72,220.65,6.18168477]
[1734296510218,1.94,220.72,220.68,2.2665]
[1734296510812,6.18168477,220.71,220.66,2.2666]
[1734296511615,6.18168477,220.69,220.65,2.2668]
[1734296511922,6.18168477,220.67,220.6,6.18168477]
[1734296512117,1.94,220.66,220.6,6.18168477]
[1734296513327,6.18168477,220.65,220.61,2.2672]
[1734296518220,1.94,220.66,220.61,2.2672]
[1734296518621,1.94,220.66,220.6,6.18168477]
[1734296518821,1.94,220.66,220.62,2.267]
[1734296520214,1.94,220.66,220.61,2.2671]
[1734296520215,4.2067,220.66,220.61,2.2671]
[1734296520824,4.2067,220.66,220.62,2.2671]
[1734296521021,1.94,220.66,220.62,2.2671]
[1734296523027,2.2669,220.64,220.59,7.80868867]
[1734296523225,8.44858477,220.64,220.59,7.80868867]
[1734296528325,8.44858477,220.64,220.6,2.2673]
[1734296529533,2.2669,220.64,220.6,2.2673]
[1734296529728,8.44858477,220.64,220.6,2.2673]
[1734296530931,8.44858477,220.64,220.58,2.2674]
[1734296531537,8.44858477,220.64,220.59,2.2673]
[1734296532534,1.94,220.63,220.59,2.2673]
[1734296533135,1.94,220.63,220.6,2.2673]
[1734296534837,1.94,220.63,220.61,2.2671]
[1734296536244,1.94,220.63,220.59,2.2673]
[1734296536741,1.94,220.63,220.57,5.57910735]
[1734296537041,1.94,220.63,220.6,2.2673]
[1734296540138,6.18168477,220.62,220.58,2.2674]
[1734296540330,6.18168477,220.62,220.53,33.41631503]
[1734296540533,6.18168477,220.58,220.51,1.5566]
[1734296540741,6.18168477,220.56,220.53,5.3168445]
[1734296540941,6.18168477,220.56,220.45,1.4462]
[1734296540942,1.94,220.55,220.45,1.4462]
[1734296541135,1.94,220.55,220.48,6.18168477]
[1734296541539,1.94,220.55,220.49,6.18168477]
[1734296541739,1.94,220.55,220.51,2.2682]
[1734296542847,1.94,220.55,220.52,2.2681]
[1734296543439,1.94,220.55,220.54,2.2679]
[1734296544443,1.98,220.56,220.53,6.18168477]
[1734296544646,6.18168477,220.63,220.55,6.18168477]
[1734296544847,1.98,220.62,220.55,6.18168477]
[1734296545748,1.98,220.62,220.58,2.2674]
[1734296546246,1.98,220.62,220.55,6.18168477]
[1734296548546,1.98,220.62,220.58,2.2674]
[1734296552347,1.98,220.62,220.55,6.18168477]
[1734296552656,1.98,220.62,220.59,2.2673]
[1734296552951,1.98,220.62,220.57,2.2676]
[1734296553147,1.98,220.62,220.55,6.18168477]
[1734296554257,1.98,220.62,220.59,2.2673]
[1734296555157,1.98,220.62,220.6,2.2673]
[1734296558562,6.18168477,220.65,220.61,2.2672]
[1734296558856,1.98,220.64,220.61,2.2672]
[1734296560560,6.18168477,220.63,220.61,2.2672]
[1734296561360,6.18168477,220.63,220.59,2.2673]
[1734296570371,6.18168477,220.61,220.52,4.4425]
[1734296570669,6.18168477,220.59,220.52,2.8916]
[1734296570875,6.18168477,220.57,220.52,2.8916]
[1734296571071,1.98,220.56,220.54,2.2678]
[1734296571780,1.98,220.56,220.55,2.2678]
[1734296573078,1.98,220.56,220.55,7.62450856]
[1734296582282,1.98,220.59,220.58,2.2675]
[1734296583183,1.98,220.59,220.55,5.35670856]
[1734296584483,1.98,220.59,220.55,7.62440856]
[1734296586781,1.98,220.59,220.55,2.2677]
[1734296587084,1.98,220.59,220.55,6.18168477]
[1734296587686,1.98,220.6,220.55,6.18168477]
[1734296587988,1.98,220.6,220.58,2.2674]
[1734296588784,1.98,220.6,220.55,6.18168477]
[1734296588979,2.2668,220.66,220.57,6.18168477]
[1734296589193,6.18168477,220.64,220.57,6.18168477]
[1734296589383,1.98,220.65,220.57,6.18168477]
[1734296589583,8.16168477,220.65,220.57,6.18168477]
[1734296590187,1.98,220.65,220.57,6.18168477]
[1734296590387,6.18168477,220.64,220.57,6.18168477]
[1734296590886,1.98,220.65,220.61,2.2672]
[1734296591084,8.16168477,220.65,220.57,6.18168477]
[1734296591291,6.18168477,220.61,220.55,5.47266437]
[1734296591491,1.98,220.6,220.55,5.47266437]
[1734296592585,1.98,220.6,220.57,2.2675]
[1734296595190,1.98,220.6,220.56,2.2677]
[1734296595391,6.18168477,220.59,220.56,2.2677]
[1734296601105,6.18168477,220.57,220.49,1.4308]
[1734296601402,6.18168477,220.55,220.47,6.18168477]
[1734296601700,6.18168477,220.55,220.46,1.4894]
[1734296602194,6.18168477,220.53,220.46,1.4894]
[1734296602495,1.98,220.52,220.46,7.67108477]
[1734296603396,1.98,220.52,220.48,2.2685]
[1734296604000,1.98,220.52,220.5,5.46841158]
[1734296605101,1.98,220.52,220.51,2.2682]
[1734296606806,1.98,220.55,220.5,11.65009635]
[1734296608599,1.98,220.54,220.5,11.65009635]
[1734296609508,1.98,220.54,220.52,2.268]
[1734296609906,1.98,220.54,220.5,5.46841158]
[1734296610201,1.98,220.54,220.51,2.2682]
[1734296612300,1.98,220.54,220.5,7.73671158]
[1734296612501,6.18168477,220.53,220.46,1.4894]
[1734296612703,6.18168477,220.53,220.46,7.67108477]
[1734296613006,6.18168477,220.53,220.45,6.18168477]
[1734296613608,8.44978477,220.53,220.48,5.51118562]
[1734296614709,6.18168477,220.53,220.48,5.51118562]
[1734296615500,8.44968477,220.53,220.48,5.51118562]
[1734296617407,6.18168477,220.53,220.47,2.2686]
[1734296617612,6.18168477,220.49,220.41,6.18168477]
[1734296617809,6.18168477,220.49,220.43,5.41523569]
[1734296617810,1.98,220.48,220.43,5.41523569]
[1734296618312,4.2486,220.48,220.43,5.41523569]
[1734296618910,8.45028477,220.47,220.41,2.2692]
[1734296619311,6.18168477,220.45,220.36,2.2697]
[1734296619506,4.249,220.44,220.38,5.53824636]
[1734296619711,1.98,220.44,220.38,11.71993113]
[1734296620308,1.98,220.44,220.34,1.4888]
[1734296620515,6.18168477,220.43,220.34,1.4888]
[1734296621017,6.18168477,220.42,220.35,2.2699]
[1734296621212,6.18168477,220.42,220.34,6.18168477]
[1734296621508,2.2693,220.41,220.34,6.18168477]
[1734296621709,1.98,220.4,220.34,6.18168477]
[1734296621907,1.98,220.4,220.38,6.18168477]
[1734296622313,1.98,220.4,220.38,8.45118477]
[1734296622817,1.98,220.4,220.38,2.2695]
[1734296623114,1.98,220.4,220.34,7.94600977]
[1734296623415,8.16168477,220.4,220.34,7.94600977]
[1734296625115,8.16168477,220.4,220.34,0.17891]
[1734296626013,10.43108477,220.4,220.34,0.17891]
[1734296626219,6.18168477,220.38,220.34,0.17891]
[1734296626418,6.18168477,220.36,220.34,0.17891]
[1734296626619,2.18,220.35,220.34,0.17891]
[1734296633825,2.18,220.35,220.12,6.29715037]
[1734296634128,2.18,220.35,220.14,2.9585]
[1734296634129,6.18168477,220.26,220.14,2.9585]
[1734296634430,2.4,220.25,220.14,2.9585]
[1734296634630,6.18168477,220.24,220.17,6.18168477]
[1734296634820,6.18168477,220.24,220.19,5.43769132]
[1734296635525,6.18168477,220.22,220.19,5.43769132]
[1734296638024,2.58,220.21,220.19,5.43769132]
[1734296638628,1.5567,220.33,219.93,20.51100148]
[1734296638629,6.18168477,220.2,219.93,20.51100148]
[1734296638831,6.18168477,220.1,220.01,6.18168477]
[1734296639026,2.58,220.13,220.05,6.18168477]
[1734296639235,6.18168477,220.06,219.99,5.40055657]
[1734296639530,2.58,220.08,219.99,5.40055657]
[1734296639729,6.18168477,220.06,219.99,5.40055657]
[1734296640124,2.58,220.09,219.96,2.58]
[1734296640325,6.18168477,220.05,219.96,6.18168477]
[1734296640528,6.18168477,220.05,219.98,2.2736]
[1734296640924,6.18168477,220.05,219.96,6.18168477]
[1734296641134,6.18168477,220.03,219.94,2.58]
[1734296641330,6.18168477,220.01,219.92,10.59308477]
[1734296641535,6.18168477,220.01,219.92,9.14448477]
[1734296642333,6.18168477,219.99,219.92,2.9628]
[1734296642933,2.58,220.03,219.95,2.2739]
[1734296643134,6.18168477,219.99,219.93,5.37610655]
[1734296643334,6.18168477,219.99,219.96,2.2739]
[1734296644034,6.18168477,220.02,220.0,2.2734]
[1734296644237,6.18168477,220.03,219.94,6.18168477]
[1734296644631,2.58,220.14,220.0,6.18168477]
[1734296644935,6.18168477,220.09,220.0,6.18168477]
[1734296645136,6.18168477,220.09,220.0,7.73728477]
[1734296645338,6.18168477,220.09,220.05,2.2729]
[1734296645634,6.18168477,220.09,220.0,7.73728477]
[1734296645836,6.18168477,220.09,220.01,1.5205]
[1734296646134,9.73961671,220.12,220.08,2.2726]
[1734296646430,2.58,220.14,220.08,2.2726]
[1734296646838,13.80811671,220.15,220.01,1.5205]
[1734296647038,9.73961671,220.15,220.01,1.5205]
[1734296647941,9.73961671,220.15,220.1,2.2724]
[1734296650639,9.73961671,220.15,220.01,1.5205]
[1734296650838,9.73961671,220.15,220.11,2.2723]
[1734296651638,3.0226,220.19,220.01,1.5205]
[1734296651639,9.73961671,220.18,220.14,2.272]
[1734296651839,9.73961671,220.18,220.06,2.58]
[1734296652038,9.73961671,220.18,220.07,1.5079]
[1734296652241,9.73961671,220.18,220.08,2.58]
[1734296653238,9.73961671,220.18,220.13,2.2721]
[1734296654844,9.73961671,220.22,220.15,2.2719]
[1734296655046,9.73961671,220.19,220.09,5.41893943]
[1734296656048,9.73961671,220.19,220.11,2.2722]
[1734296656447,9.73961671,220.19,220.09,5.41893943]
[1734296656844,9.73961671,220.19,220.12,2.2722]
[1734296657747,9.73961671,220.19,220.1,2.2724]
[1734296657947,9.73961671,220.19,220.09,5.41893943]
[1734296659349,2.58,220.2,220.09,5.41893943]
[1734296660346,2.2715,220.19,220.11,2.2723]
[1734296661653,6.92573521,220.26,220.09,15.15855614]
[1734296661852,9.73961671,220.24,220.1,3.0156]
[1734296662059,2.58,220.23,220.17,2.2716]
[1734296662650,2.58,220.23,220.18,2.2716]
[1734296663051,2.58,220.23,220.1,5.5956]
[1734296663251,2.58,220.23,220.19,2.2715]
[1734296664047,2.58,220.23,220.13,2.272]
[1734296664253,2.58,220.23,220.1,2.58]
[1734296666759,2.58,220.23,220.09,7.99893943]
[1734296666963,4.8511,220.23,220.09,7.99893943]
[1734296667951,6.22746328,220.2,220.12,6.22746328]
[1734296668252,6.22746328,220.2,220.17,2.2717]
[1734296670261,2.271,220.24,220.17,2.2717]
[1734296670459,6.22746328,220.21,220.17,2.2717]
[1734296670660,6.22746328,220.21,220.14,6.22746328]
[1734296671465,6.22746328,220.21,220.17,2.2717]
[1734296671861,6.22746328,220.22,220.14,6.22746328]
[1734296673465,6.22746328,220.22,220.19,2.2715]
[1734296673764,6.22746328,220.22,220.09,7.99893943]
[1734296673967,6.22746328,220.18,220.09,5.41893943]
[1734296674159,6.22746328,220.18,220.09,11.64640271]
[1734296674764,8.76746328,220.18,220.09,11.64640271]
[1734296675363,6.22746328,220.16,220.12,2.2721]
[1734296675758,6.22746328,220.16,219.96,130.32998274]
[1734296675759,6.22746328,220.14,220.02,2.54]
[1734296676067,2.54,220.18,220.08,5.54092867]
[1734296676068,6.22746328,220.12,220.08,5.54092867]
[1734296676964,6.22746328,220.12,220.09,2.2725]
[1734296677966,2.54,220.14,220.09,2.2725]
[1734296678163,2.54,220.14,220.01,12.27627158]
[1734296678468,2.54,220.14,220.05,5.4267707]
[1734296678665,12.27627158,220.14,220.05,5.4267707]
[1734296679364,2.2722,220.13,220.05,5.4267707]
[1734296680562,2.2722,220.13,220.06,2.2729]
[1734296681669,2.2722,220.13,220.05,5.4267707]
[1734296681972,2.2722,220.13,220.07,2.2728]
[1734296682777,12.27627158,220.14,220.05,5.4267707]
[1734296683271,2.54,220.14,220.05,5.4267707]
[1734296684171,2.54,220.14,220.1,2.2724]
[1734296684371,2.54,220.14,220.05,5.4267707]
[1734296685376,2.54,220.14,220.09,2.2724]
[1734296686270,2.54,220.14,220.05,5.4267707]
[1734296686271,2.54,220.14,220.1,2.2722]
[1734296686672,2.54,220.13,220.1,2.2722]
[1734296687374,2.54,220.13,220.05,5.4267707]
[1734296687375,2.54,220.14,220.05,5.4267707]
[1734296687669,2.8917,220.28,220.07,9.73627158]
[1734296687874,2.54,220.19,220.16,2.2716]
[1734296690576,12.00727158,220.22,220.16,2.2716]
[1734296690876,53.19693381,220.2,220.16,2.2716]
[1734296692674,53.19693381,220.2,220.08,4.465]
[1734296693374,53.19693381,220.2,220.17,2.2714]
[1734296694775,62.93320539,220.2,220.08,4.465]
[1734296695480,2.2714,220.19,220.13,2.2719]
[1734296696681,2.2714,220.18,220.11,2.272]
[1734296697979,6.22994023,220.15,220.08,10.69494023]
[1734296698280,8.76994023,220.15,220.08,4.465]
[1734296698486,8.76994023,220.15,220.09,6.22994023]
[1734296698876,2.54,220.15,220.09,6.22994023]
[1734296699778,8.76994023,220.15,220.11,2.2721]
[1734296701186,8.76994023,220.15,220.12,2.272]
[1734296701682,8.76994023,220.15,220.11,2.2721]
[1734296703083,8.76994023,220.15,220.07,6.22994023]
[1734296703280,8.76994023,220.15,220.12,2.272]
[1734296703783,2.54,220.15,220.12,2.272]
[1734296706583,2.54,220.15,220.09,6.22994023]
[1734296707984,2.54,220.15,220.05,5.4267707]
[1734296708185,2.54,220.15,220.08,6.22994023]
[1734296708689,2.54,220.15,220.11,2.2721]
[1734296709886,2.54,220.15,220.05,5.4267707]
[1734296710189,6.22994023,220.14,220.09,2.2722]
[1734296712190,2.46,220.15,220.08,6.22994023]
[1734296713691,2.46,220.15,220.13,2.2719]
[1734296714588,50.65693381,220.2,220.12,6.22994023]
[1734296714789,2.46,220.19,220.12,6.22994023]
[1734296715182,2.46,220.19,220.15,2.2716]
[1734296715395,2.46,220.19,220.12,6.22994023]
[1734296715692,56.88687404,220.2,220.12,6.22994023]
[1734296715892,2.46,220.19,220.12,6.22994023]
[1734296716692,2.46,220.19,220.15,2.2716]
[1734296718795,2.46,220.19,220.16,2.2716]
[1734296721495,6.22994023,220.18,220.09,5.35384121]
[1734296721795,6.22994023,220.15,220.09,5.35384121]
[1734296722697,6.22994023,220.17,220.12,2.2719]
[1734296723098,6.22994023,220.17,220.1,6.22994023]
[1734296723395,6.22994023,220.17,220.13,2.2718]
[1734296723788,6.22994023,220.17,220.1,6.22994023]
[1734296723989,8.68994023,220.19,220.15,2.2717]
[1734296725397,8.68994023,220.19,220.12,6.22994023]
[1734296725592,8.68994023,220.19,220.14,2.2718]
[1734296730296,10.96134023,220.19,220.14,2.2717]
[1734296730700,4.7314,220.19,220.14,2.2717]
[1734296730904,6.22994023,220.18,220.14,2.2717]